bitfinex/quotes_ETHUSD_20241203
["timestamp","ask_amount","ask_price","bid_price","bid_amount"]
[1733252569530,0.8112714,3578.2,3577.9,2.79777814]
[1733252569745,0.55,3578.3,3577.9,2.79777814]
[1733252570061,0.55,3578.1,3577.9,2.79777814]
[1733252570436,0.55,3578.3,3577.9,2.79777814]
[1733252570765,0.55,3578.1,3577.9,2.79777814]
[1733252571205,0.55,3578.2,3577.9,2.79777814]
[1733252571405,0.55,3578.3,3578.0,2.79484]
[1733252571853,0.55,3578.1,3578.0,2.79484]
[1733252572025,0.55,3578.4,3577.9,0.82862814]
[1733252572210,0.55,3578.2,3578.1,2.79471]
[1733252573046,0.55,3578.5,3578.1,2.79471]
[1733252573245,0.55,3578.3,3578.1,2.79471]
[1733252573559,0.81124863,3578.3,3577.9,2.79783814]
[1733252573848,0.55,3578.3,3577.9,0.00292814]
[1733252574658,0.55,3578.3,3578.0,2.79485]
[1733252574949,0.55,3578.3,3577.9,0.00292814]
[1733252575312,1.25261942,3578.3,3577.9,0.00292814]
[1733252575531,0.55,3578.1,3577.9,0.00292814]
[1733252575731,3.55,3578.1,3577.9,0.00292814]
[1733252576028,6.34485,3578.0,3577.9,0.00292814]
[1733252576537,10.34485,3578.0,3577.9,0.00292814]
[1733252576839,11.04225813,3578.0,3577.9,0.00292814]
[1733252577338,11.40554181,3578.0,3577.9,0.00292814]
[1733252577531,13.16023786,3578.0,3577.9,0.00292814]
[1733252577940,11.40554181,3578.0,3577.9,0.00292814]
[1733252578818,13.7472761,3578.0,3577.9,0.00292814]
[1733252579128,11.40554181,3578.0,3577.9,0.00292814]
[1733252579656,13.74714978,3578.0,3577.9,0.00292814]
[1733252579948,11.40554181,3578.0,3577.9,0.00292814]
[1733252580313,2.79564,3577.0,3576.0,2.7964]
[1733252580518,2.8136994,3576.6,3575.9,0.7912]
[1733252580826,3.55,3576.5,3575.9,0.7912]
[1733252581214,3.55,3576.5,3575.2,2.79697]
[1733252581215,3.55,3576.5,3575.5,2.79673]
[1733252581560,3.55,3576.5,3575.3,0.8322]
[1733252581561,0.55,3575.9,3575.3,0.8322]
[1733252582064,0.55,3575.9,3574.5,2.79757]
[1733252582065,0.55,3576.1,3575.4,2.79688]
[1733252582350,0.55,3576.1,3575.6,0.8277]
[1733252582939,0.55,3576.1,3576.0,2.79642]
[1733252583248,0.55,3576.1,3575.8,2.79654]
[1733252583554,0.55,3576.1,3575.6,0.8277]
[1733252583713,0.55,3576.2,3575.5,2.7968]
[1733252583913,3.55,3576.2,3575.6,2.7967]
[1733252584135,3.55,3576.2,3575.4,3.58666]
[1733252584136,4.25261942,3576.2,3575.4,3.58666]
[1733252584631,4.25261942,3576.2,3575.4,0.7898]
[1733252584831,3.55,3576.2,3575.5,2.79677]
[1733252585030,3.55,3576.2,3575.4,0.7898]
[1733252585031,3.55,3576.2,3575.6,2.79671]
[1733252585944,0.55,3576.7,3575.8,2.79655]
[1733252586535,0.55,3576.7,3575.5,2.79674]
[1733252586774,0.55,3576.7,3575.9,2.79647]
[1733252587079,1.46593494,3576.7,3575.9,2.79647]
[1733252587373,1.46593494,3576.7,3575.7,2.79662]
[1733252587857,1.46593494,3576.7,3575.4,0.7898]
[1733252588056,1.46593494,3576.7,3575.8,2.79655]
[1733252588229,1.46593494,3576.7,3575.5,2.79681]
[1733252588577,2.8136994,3576.9,3576.0,0.7937]
[1733252588759,2.8136994,3576.9,3576.3,2.79618]
[1733252589271,2.8136994,3576.9,3576.0,0.7937]
[1733252589480,2.8136994,3576.9,3576.2,2.79625]
[1733252589977,3.55,3576.8,3576.3,2.79618]
[1733252590768,3.55,3577.1,3576.3,2.79618]
[1733252593271,3.55,3576.8,3575.9,2.79649]
[1733252593661,0.55,3576.5,3575.9,2.79649]
[1733252594062,0.55,3576.5,3576.0,2.7964]
[1733252594261,3.55,3576.5,3575.4,2.79688]
[1733252594473,3.0,3576.2,3575.3,0.8271]
[1733252594785,0.55,3576.1,3575.6,2.7967]
[1733252595345,0.55,3576.1,3575.4,2.79687]
[1733252595746,0.55,3576.1,3575.5,2.7968]
[1733252595945,3.55,3575.9,3575.1,2.9519778]
[1733252596153,3.55,3575.6,3575.1,0.1548778]
[1733252597211,0.55,3575.2,3575.1,0.1548778]
[1733252598161,3.34704,3575.2,3575.1,0.1548778]
[1733252598357,6.34704,3575.2,3575.1,0.1548778]
[1733252598578,6.60715954,3575.2,3575.1,0.1548778]
[1733252598873,3.55,3574.2,3573.3,2.79846]
[1733252599190,0.55,3574.2,3573.3,2.79846]
[1733252599391,3.0,3574.5,3573.0,0.7934]
[1733252599392,0.55,3574.4,3573.8,2.79813]
[1733252599743,0.55,3574.4,3573.5,0.02798171]
[1733252599981,0.55,3574.4,3573.4,2.79841]
[1733252600173,0.55,3574.5,3573.0,0.7934]
[1733252600368,0.55,3574.3,3573.0,0.7934]
[1733252600572,0.55,3574.3,3573.9,2.79805]
[1733252600773,2.79721,3575.0,3573.7,0.7806]
[1733252600774,0.55,3574.5,3573.7,0.7806]
[1733252600975,0.55,3575.2,3573.7,0.7806]
[1733252601284,0.25997882,3575.2,3574.6,2.79751]
[1733252601589,0.67594943,3575.5,3574.0,2.79798]
[1733252601761,0.8886017,3575.5,3574.8,2.79729]
[1733252602093,0.8886017,3575.5,3574.9,2.79724]
[1733252602251,0.25997882,3575.5,3574.9,2.79724]
[1733252602658,2.8136994,3575.9,3574.8,2.79735]
[1733252602859,0.26011837,3575.8,3575.6,2.79671]
[1733252603060,0.26011837,3576.2,3575.6,2.79668]
[1733252603285,0.26011837,3576.1,3575.6,2.79668]
[1733252603544,0.26011837,3576.0,3575.4,0.7989]
[1733252603702,4.0,3575.7,3575.6,2.79673]
[1733252603855,4.0,3575.7,3575.6,0.359563]
[1733252604062,4.0,3575.7,3575.6,3.156293]
[1733252604263,0.416032,3577.3,3576.7,2.79586]
[1733252604597,0.26048735,3577.2,3576.8,2.79579]
[1733252604788,0.26048735,3577.1,3576.3,0.7989]
[1733252604997,0.26048735,3577.4,3576.8,2.79574]
[1733252605169,0.26048735,3577.3,3576.6,2.79593]
[1733252605491,0.26062895,3577.2,3576.3,1.158431]
[1733252605693,0.26062895,3577.1,3576.5,2.79602]
[1733252605906,0.29178427,3577.5,3576.8,2.79575]
[1733252606197,0.2606272,3577.4,3576.8,2.79575]
[1733252606379,0.29178427,3577.5,3576.8,2.79575]
[1733252606380,0.8106272,3577.3,3576.8,2.79575]
[1733252606586,0.55,3577.1,3576.8,2.79575]
[1733252606767,0.55,3577.3,3576.8,2.79575]
[1733252607096,0.26065998,3577.2,3576.8,2.79575]
[1733252607313,0.26069848,3577.1,3576.8,2.79575]
[1733252607515,0.55,3577.4,3576.8,2.79575]
[1733252607516,0.26067326,3577.3,3576.8,2.79575]
[1733252607676,0.81067326,3577.2,3576.8,2.79575]
[1733252607867,0.26067326,3577.1,3576.6,2.79592]
[1733252608074,0.55,3577.4,3576.6,2.79592]
[1733252608280,0.55,3577.2,3576.6,2.79592]
[1733252608526,0.26067528,3577.1,3576.6,2.79592]
[1733252608687,0.55,3577.2,3576.7,2.79587]
[1733252608893,0.26065206,3577.1,3576.7,2.79587]
[1733252609197,0.4170433,3577.6,3577.0,2.79558]
[1733252609394,0.26062804,3577.5,3576.7,2.79579]
[1733252609712,5.79486,3578.0,3576.3,0.7989]
[1733252609713,0.26062804,3577.4,3576.3,0.7989]
[1733252609924,0.26062804,3577.3,3576.9,2.79567]
[1733252610231,0.4170433,3577.9,3576.3,0.7989]
[1733252610232,0.260592,3577.8,3577.2,2.79542]
[1733252610531,0.29200375,3578.1,3576.9,2.79564]
[1733252610532,0.260592,3577.7,3576.9,2.79564]
[1733252610827,0.260592,3577.7,3574.8,3.62101]
[1733252610828,3.0,3576.9,3574.8,3.62101]
[1733252611072,0.260592,3576.8,3575.8,2.79655]
[1733252611233,0.55,3576.7,3575.8,2.79655]
[1733252611390,3.0,3576.1,3575.0,0.8237]
[1733252611730,2.8136994,3575.6,3575.2,2.79704]
[1733252612399,2.8136994,3575.6,3575.1,2.79711]
[1733252613621,3.57301396,3575.9,3575.1,2.79711]
[1733252613827,0.26053036,3575.8,3575.0,0.8237]
[1733252614130,0.26053036,3575.7,3575.0,0.8237]
[1733252614301,0.26053036,3575.6,3575.0,3.62083]
[1733252614501,4.51816371,3575.9,3575.0,3.62083]
[1733252614502,0.26053036,3575.8,3575.0,3.62083]
[1733252614691,0.26053036,3575.7,3575.1,2.79705]
[1733252614896,0.26053036,3575.6,3575.1,2.79705]
[1733252615092,0.26053036,3575.8,3575.1,2.79705]
[1733252615287,0.26053036,3575.7,3575.2,2.797]
[1733252615493,0.26053036,3575.6,3575.2,2.797]
[1733252615831,0.26051346,3575.8,3575.0,0.8237]
[1733252616137,3.0,3576.2,3575.5,2.7968]
[1733252616301,3.0,3576.2,3575.0,0.8237]
[1733252616302,0.26051675,3576.1,3575.0,0.8237]
[1733252616506,0.26051675,3576.0,3575.6,2.79666]
[1733252616734,0.26051675,3575.9,3575.6,2.79666]
[1733252617033,3.4168268,3576.2,3575.5,2.79678]
[1733252617034,0.26051675,3575.8,3575.5,2.79678]
[1733252617248,3.4168268,3576.2,3575.5,2.79678]
[1733252617409,0.26049769,3576.1,3575.5,2.79678]
[1733252617603,0.26049769,3576.0,3575.5,2.79678]
[1733252617803,0.26049769,3575.9,3575.5,2.79678]
[1733252618003,0.26049769,3575.8,3575.6,2.79671]
[1733252618233,0.26049769,3575.7,3575.6,2.79671]
[1733252618530,3.4168268,3576.2,3575.1,2.79712]
[1733252618531,0.26049769,3576.1,3575.1,2.79712]
[1733252618768,0.26049769,3576.0,3575.5,2.79674]
[1733252618923,3.4168268,3576.2,3575.1,0.362082]
[1733252618924,0.26049769,3575.9,3575.3,2.79689]
[1733252619268,0.26050722,3576.1,3575.7,2.79658]
[1733252619476,0.26050722,3576.0,3575.1,0.362082]
[1733252619618,3.57301396,3576.3,3575.8,2.79654]
[1733252619619,0.26050722,3576.2,3575.8,2.79654]
[1733252619948,0.26050722,3576.1,3575.8,2.79654]
[1733252620148,3.57301396,3576.3,3575.4,2.79685]
[1733252620149,0.26050722,3576.0,3575.9,2.79649]
[1733252620365,0.26050722,3576.2,3575.9,2.79649]
[1733252620738,0.26050722,3576.1,3575.9,2.79643]
[1733252621060,0.4168268,3576.6,3575.9,2.79643]
[1733252621235,0.95951152,3576.5,3575.9,2.79643]
[1733252621434,3.8335414,3576.4,3575.4,2.79684]
[1733252621622,3.26052744,3576.3,3575.4,2.79684]
[1733252621829,0.26052744,3576.2,3575.4,2.79684]
[1733252622020,3.4168268,3576.3,3575.4,2.79684]
[1733252622021,0.26052744,3576.1,3575.4,2.79684]
[1733252622233,0.26052744,3576.0,3575.4,2.79684]
[1733252622442,0.26052744,3575.9,3575.4,2.79684]
[1733252622637,0.26052744,3575.8,3575.4,2.79684]
[1733252622975,3.4168268,3576.3,3575.4,2.79684]
[1733252623267,0.80680997,3576.2,3575.4,2.79684]
[1733252623470,0.2606443,3576.1,3575.4,2.79684]
[1733252623676,0.2606443,3576.0,3575.4,2.79684]
[1733252623840,0.2606443,3575.9,3575.2,0.8202]
[1733252624034,0.2606443,3575.8,3575.2,0.8202]
[1733252624376,0.2606443,3576.1,3575.8,2.79657]
[1733252624553,0.2606443,3576.0,3575.8,2.79657]
[1733252624754,0.2606443,3575.9,3575.2,1.181925]
[1733252625070,3.4168268,3576.3,3575.6,2.79666]
[1733252625250,0.26065964,3576.2,3575.6,2.79666]
[1733252625450,0.26065964,3576.1,3575.6,2.79666]
[1733252625656,0.26065964,3576.0,3575.4,2.79685]
[1733252625839,0.26065964,3575.9,3575.5,2.79676]
[1733252626044,3.4168268,3576.3,3575.5,2.79676]
[1733252626257,0.26066044,3576.2,3575.5,2.79676]
[1733252626461,0.26065707,3576.1,3575.5,2.79676]
[1733252626752,0.26065707,3576.0,3575.2,0.8202]
[1733252626985,0.26065707,3575.9,3575.6,2.79668]
[1733252627185,0.26065707,3575.8,3575.6,2.79668]
[1733252627394,0.26065707,3576.2,3575.6,2.79668]
[1733252627576,0.26065707,3576.1,3575.2,0.8202]
[1733252627917,0.26065707,3576.0,3575.9,2.79648]
[1733252628190,0.26065707,3576.2,3575.8,2.79653]
[1733252628487,0.26065707,3576.1,3575.6,2.7967]
[1733252628792,0.26065707,3576.0,3575.7,2.79662]
[1733252628994,0.67780696,3576.5,3575.7,2.79662]
[1733252629142,0.90812435,3576.4,3575.7,2.79662]
[1733252629347,0.26075565,3576.3,3575.7,2.79662]
[1733252629668,0.26075565,3576.2,3575.2,1.181927]
[1733252629871,0.26075565,3576.2,3575.7,2.79665]
[1733252630187,0.26075565,3576.1,3575.7,2.79665]
[1733252630343,0.26075565,3576.0,3575.7,2.79665]
[1733252630545,0.26075565,3575.9,3575.7,2.79665]
[1733252630853,0.6473687,3576.4,3575.7,2.79665]
[1733252631052,0.26099998,3576.3,3575.7,2.79665]
[1733252631271,0.26099998,3576.2,3575.7,2.79665]
[1733252631482,0.26099998,3576.1,3575.7,2.79665]
[1733252631781,0.41705131,3576.3,3575.2,3.61721]
[1733252631782,0.26099998,3576.0,3575.8,2.79657]
[1733252632096,0.26099998,3575.9,3575.7,2.79664]
[1733252632249,0.26099998,3575.8,3575.7,2.79664]
[1733252632446,0.26099998,3575.8,3575.2,3.61724]
[1733252632447,0.26099998,3575.8,3575.4,2.79682]
[1733252632669,0.26105668,3575.7,3575.4,2.79682]
[1733252632990,3.0,3576.4,3575.2,0.8202]
[1733252633145,1.25835211,3576.3,3575.3,2.79696]
[1733252633350,3.0,3576.7,3575.3,2.79696]
[1733252633351,0.67874211,3576.2,3575.5,2.79675]
[1733252633551,0.67874211,3576.1,3575.6,2.79669]
[1733252633787,0.26105485,3576.0,3575.3,2.79696]
[1733252634000,3.57301396,3576.8,3575.3,2.79696]
[1733252634001,0.26105485,3575.9,3575.7,2.79664]
[1733252634146,0.26105485,3575.8,3575.7,2.79664]
[1733252635051,0.2610873,3575.8,3575.5,2.79681]
[1733252635260,3.0,3576.8,3575.8,2.79651]
[1733252635261,0.41768726,3576.7,3575.8,2.79651]
[1733252635461,0.67884367,3576.6,3575.8,2.79651]
[1733252635665,0.67884367,3576.5,3575.9,2.79647]
[1733252635962,0.67884367,3576.4,3575.9,2.79647]
[1733252636305,0.67884367,3576.3,3575.9,2.79647]
[1733252636581,0.67884367,3576.2,3575.9,2.79647]
[1733252636780,0.67884367,3576.1,3575.9,2.79647]
[1733252636991,0.26115641,3576.0,3575.9,2.79647]
[1733252637161,0.26115641,3576.0,3575.7,2.79662]
[1733252637359,0.26115641,3575.9,3575.8,2.79654]
[1733252638593,0.26115641,3575.9,3575.8,4.148075]
[1733252639085,0.41838546,3576.8,3575.8,3.93383635]
[1733252639260,0.67989779,3576.7,3576.6,2.79593]
[1733252640176,0.67989779,3576.7,3576.5,0.7898]
[1733252640394,0.67989779,3576.6,3576.5,0.7898]
[1733252640695,3.0,3577.4,3576.5,3.58582]
[1733252640867,0.68122787,3577.3,3576.5,3.58582]
[1733252641063,0.68122787,3577.2,3576.5,2.79602]
[1733252641277,0.29203878,3577.6,3575.4,2.82112892]
[1733252641278,2.82112892,3576.9,3576.0,2.79635]
[1733252641594,2.82112892,3576.2,3575.4,0.8062]
[1733252641899,3.47756787,3576.1,3575.0,0.7738]
[1733252642050,2.79649,3575.9,3575.0,0.7738]
[1733252642250,0.68122787,3575.8,3575.0,3.57098]
[1733252642456,0.68122787,3575.7,3575.1,2.79711]
[1733252642804,0.68122787,3575.6,3575.2,2.79702]
[1733252643000,0.68122787,3575.5,3575.2,2.79702]
[1733252643169,0.68122787,3575.4,3575.2,2.79702]
[1733252643497,0.68122787,3575.3,3575.2,2.79702]
[1733252643649,0.68122787,3575.3,3575.0,3.57097]
[1733252643853,0.68122787,3575.3,3574.1,6.38074092]
[1733252643854,0.26201072,3575.2,3574.6,0.813]
[1733252644056,0.26201072,3575.1,3575.0,2.7972]
[1733252644293,0.26201072,3575.1,3575.0,3.35945995]
[1733252646196,0.26201072,3575.1,3574.6,0.813]
[1733252646411,3.0,3576.1,3574.2,0.7962]
[1733252646412,0.26198365,3575.0,3574.2,0.7962]
[1733252646603,2.82112892,3575.3,3574.4,2.7976]
[1733252646604,0.26198365,3574.9,3574.4,2.7976]
[1733252646805,2.82112892,3575.3,3574.4,2.7976]
[1733252646806,0.41918442,3575.2,3574.4,2.7976]
[1733252647013,0.68119825,3575.1,3574.2,0.7962]
[1733252647159,0.68119825,3575.0,3574.6,2.79749]
[1733252647511,0.68119825,3574.9,3574.2,3.953386]
[1733252647709,0.26201383,3574.8,3574.2,3.953386]
[1733252648014,2.82112892,3575.3,3574.7,2.79743]
[1733252648320,2.82112892,3575.3,3574.2,1.155606]
[1733252648321,0.68091262,3575.2,3574.5,2.79758]
[1733252648614,1.03111677,3575.1,3574.5,2.79758]
[1733252648794,0.68091262,3575.0,3574.5,2.79758]
[1733252648997,0.68091262,3574.9,3574.5,2.79758]
[1733252649168,0.26192847,3574.8,3574.6,2.7975]
[1733252649367,0.26192847,3574.7,3574.6,2.7975]
[1733252650607,0.41879525,3575.4,3574.8,2.7973]
[1733252650911,5.82112892,3575.6,3574.8,2.7973]
[1733252650912,0.68057791,3575.3,3574.8,2.7973]
[1733252651076,0.68057791,3575.2,3574.8,2.7973]
[1733252651275,0.68057791,3575.1,3574.7,2.79743]
[1733252651479,0.68057791,3575.0,3574.7,2.79743]
[1733252651808,5.82112892,3575.6,3574.7,2.79743]
[1733252651809,0.26178266,3574.9,3574.7,2.79743]
[1733252651970,0.26178266,3574.8,3574.2,3.59398]
[1733252652320,0.41880685,3575.4,3574.6,2.79743]
[1733252652529,0.68051974,3575.3,3574.3,0.359398]
[1733252652712,0.68051974,3575.2,3574.8,2.79728]
[1733252652880,0.68051974,3575.1,3574.8,2.79728]
[1733252653082,0.26171289,3575.0,3574.8,2.79728]
[1733252653281,0.26171289,3574.9,3574.8,2.79728]
[1733252653732,0.26162013,3574.9,3574.8,2.79728]
[1733252654292,0.41859221,3575.2,3574.9,2.79727]
[1733252654635,0.26160092,3575.1,3575.0,2.7972]
[1733252655388,0.26160092,3575.1,3575.0,3.6185]
[1733252655619,0.41854554,3576.0,3575.2,2.797]
[1733252655931,0.68011906,3575.9,3575.1,0.02796913]
[1733252656085,0.68011906,3575.8,3575.0,0.8213]
[1733252656432,0.68011906,3575.7,3575.0,0.8213]
[1733252656633,0.68011906,3575.6,3575.4,2.79682]
[1733252656929,0.68011906,3575.6,3575.1,0.361862]
[1733252656930,0.67995077,3575.5,3575.3,2.79689]
[1733252657083,0.26157352,3575.4,3575.3,2.79695]
[1733252659600,1.17079523,3576.4,3575.9,2.79649]
[1733252659804,0.67991252,3576.3,3575.9,2.79649]
[1733252660053,0.67991252,3576.2,3575.6,0.8221]
[1733252660221,0.67991252,3576.1,3575.6,0.8221]
[1733252660384,0.67991252,3576.0,3575.6,2.79671]
[1733252660586,0.67991252,3575.9,3575.5,2.7968]
[1733252660892,0.4184085,3575.8,3575.5,2.7968]
[1733252661089,0.67991252,3575.7,3575.3,0.8221]
[1733252661397,0.26150402,3575.6,3575.5,2.79679]
[1733252663292,0.26150402,3575.6,3575.5,3.438379]
[1733252665354,0.26150402,3575.6,3575.5,2.79679]
[1733252665785,0.26150402,3575.6,3575.5,2.82475649]
[1733252666082,0.26150402,3575.6,3575.5,3.58619]
[1733252666378,0.41856628,3576.3,3575.6,2.79673]
[1733252666681,0.68017016,3576.2,3575.6,2.79673]
[1733252666833,0.68017016,3576.1,3575.8,2.79657]
[1733252667039,0.68017016,3576.1,3575.7,0.358613]
[1733252667040,0.26160388,3576.0,3575.9,2.79643]
[1733252667377,0.68018478,3576.0,3575.9,2.79643]
[1733252667674,0.68015506,3576.0,3575.9,2.79643]
[1733252670579,0.68015506,3576.0,3575.5,0.7894]
[1733252670780,0.2615981,3575.9,3575.7,2.79658]
[1733252670950,0.41862946,3576.5,3575.8,2.79657]
[1733252671299,1.17079523,3576.6,3575.8,2.79657]
[1733252671300,1.41880854,3576.4,3575.8,2.79657]
[1733252671481,0.68027507,3576.3,3575.8,2.79657]
[1733252671791,0.73853347,3576.4,3575.5,0.7894]
[1733252671792,0.68027507,3576.2,3575.5,0.7894]
[1733252671943,0.68027507,3576.1,3575.5,0.7894]
[1733252672146,1.17079523,3576.7,3575.5,0.7894]
[1733252672384,0.68023647,3576.6,3576.0,2.79638]
[1733252672565,0.68023647,3576.5,3576.0,2.79638]
[1733252672756,0.68023647,3576.4,3576.0,2.79638]
[1733252672963,0.68023647,3576.3,3575.5,1.45045289]
[1733252673161,0.68023647,3576.2,3575.7,2.79659]
[1733252673380,0.68023647,3576.1,3575.5,1.45045289]
[1733252673548,0.26163048,3576.0,3575.9,2.79649]
[1733252673994,0.68021889,3576.0,3575.9,2.79649]
[1733252674198,0.68021889,3576.0,3575.5,1.45045289]
[1733252674349,0.26163048,3575.9,3575.8,2.7965]
[1733252674549,0.41856574,3576.5,3575.9,2.79649]
[1733252674794,0.52685874,3576.7,3575.2,3.0]
[1733252674795,3.21473574,3576.4,3575.2,0.7918]
[1733252675001,3.0,3576.2,3575.3,2.79692]
[1733252675147,3.47656685,3576.1,3574.9,0.7918]
[1733252675353,0.26160111,3576.0,3574.9,0.7918]
[1733252675589,4.17079523,3576.2,3574.9,0.7918]
[1733252675590,0.68016685,3575.9,3575.2,2.79703]
[1733252675792,0.68016685,3575.8,3575.0,2.79712]
[1733252676047,0.68016685,3575.7,3575.0,2.79712]
[1733252676252,0.68016685,3575.6,3575.0,2.79712]
[1733252676451,0.68016685,3575.5,3574.9,2.79725]
[1733252676694,0.68016685,3575.4,3574.9,2.79725]
[1733252676895,0.26160111,3575.3,3574.9,2.79725]
[1733252677045,0.26160111,3575.2,3574.9,2.79725]
[1733252677251,0.26160111,3575.1,3574.9,2.79725]
[1733252677485,0.41850102,3575.5,3574.9,2.79725]
[1733252677698,0.68004633,3575.4,3574.9,2.79725]
[1733252677896,0.26154531,3575.3,3574.9,2.79725]
[1733252678196,0.26152909,3575.2,3574.4,0.7538]
[1733252678397,0.26152909,3575.1,3574.5,2.79753]
[1733252678552,0.26152909,3575.0,3574.6,0.355133]
[1733252678758,0.26152909,3574.9,3574.6,0.355133]
[1733252678977,2.79673,3575.6,3574.6,0.355133]
[1733252678978,0.26152909,3574.8,3574.6,0.355133]
[1733252679177,0.41846037,3575.2,3574.6,0.355133]
[1733252679377,0.67998889,3575.1,3574.6,3.152643]
[1733252679574,0.26152852,3575.0,3574.6,3.152643]
[1733252679804,0.26152852,3574.9,3574.6,3.152643]
[1733252680006,1.51844591,3575.8,3574.6,3.152643]
[1733252680007,0.41845803,3575.4,3575.3,2.79696]
[1733252680208,0.41853814,3575.9,3575.3,0.7723]
[1733252680381,1.17079523,3576.5,3575.5,2.79676]
[1733252680576,4.55209285,3576.7,3575.5,2.79676]
[1733252680577,0.41859551,3576.4,3575.5,2.79674]
[1733252680826,0.41859551,3576.3,3575.5,2.79674]
[1733252681009,0.41859551,3576.2,3575.6,2.79666]
[1733252681195,0.41859551,3576.1,3575.7,2.79664]
[1733252681396,0.41859551,3576.0,3575.7,2.79664]
[1733252681720,4.17079523,3576.7,3575.8,2.79655]
[1733252682024,1.58945727,3576.6,3575.6,2.7967]
[1733252682530,0.41866204,3576.5,3575.7,2.79664]
[1733252682693,3.0,3576.7,3575.3,0.7723]
[1733252682694,0.41866204,3576.4,3576.0,2.7964]
[1733252682895,0.41866204,3576.3,3575.6,3.56903]
[1733252683110,0.41866204,3576.2,3575.6,3.56903]
[1733252683314,1.17079523,3576.8,3575.7,0.356903]
[1733252683525,0.41880621,3576.7,3575.6,3.56903]
[1733252683709,0.41880621,3576.6,3575.6,3.56903]
[1733252683919,0.41880621,3576.5,3575.9,2.79647]
[1733252684081,0.41880621,3576.4,3575.6,0.7723]
[1733252684414,0.41880621,3576.3,3575.6,0.7723]
[1733252684615,0.41880621,3576.2,3575.9,2.79649]
[1733252684937,1.17079523,3576.8,3575.9,2.79649]
[1733252685240,0.41886655,3576.7,3575.9,2.79649]
[1733252685524,0.41886655,3576.6,3576.0,2.79639]
[1733252685695,0.41886655,3576.5,3576.0,2.79639]
[1733252685903,1.17079523,3576.8,3576.0,2.79639]
[1733252685904,0.41886655,3576.4,3576.0,2.79639]
[1733252686096,1.17079523,3576.8,3576.0,2.79639]
[1733252686097,0.41886655,3576.3,3576.0,2.79639]
[1733252686296,0.41886655,3576.2,3576.0,2.79639]
[1733252686517,1.17079523,3576.8,3576.0,2.79639]
[1733252686687,0.41889192,3576.7,3576.0,2.79639]
[1733252686887,0.41889192,3576.6,3576.0,2.79639]
[1733252687087,0.41889192,3576.5,3576.0,2.79639]
[1733252687527,0.41889192,3576.4,3576.0,2.79639]
[1733252687711,0.41889192,3576.3,3575.7,2.79662]
[1733252687915,1.17079523,3576.9,3575.8,0.356892]
[1733252688134,0.41887398,3576.8,3576.1,2.79634]
[1733252688330,0.41887398,3576.7,3576.1,2.79634]
[1733252688493,0.41887398,3576.6,3576.1,2.79634]
[1733252688693,0.41887398,3576.5,3576.1,2.79634]
[1733252688889,0.41887398,3576.4,3576.1,2.79634]
[1733252689126,3.0,3577.0,3576.1,2.79634]
[1733252689127,0.41887398,3576.3,3576.1,2.79634]
[1733252689321,4.17079523,3577.0,3576.1,2.79634]
[1733252689495,0.4188477,3576.9,3576.1,2.79634]
[1733252689693,0.4188477,3576.8,3576.1,2.79634]
[1733252689995,0.4188477,3576.7,3576.1,2.79634]
[1733252690201,0.4188477,3576.6,3575.8,2.79649]
[1733252690453,1.17079523,3576.9,3575.3,5.79696]
[1733252690454,0.4188477,3576.5,3575.3,3.55556]
[1733252690648,0.4188477,3576.4,3575.7,0.7586]
[1733252690950,0.4188477,3576.3,3576.2,2.79623]
[1733252691246,0.4188477,3576.3,3575.7,0.7586]
[1733252691419,0.4188477,3576.2,3575.4,0.7586]
[1733252691625,0.4188477,3576.1,3575.4,0.7586]
[1733252691955,0.68055604,3576.0,3575.6,2.79666]
[1733252692115,0.68055604,3575.9,3575.6,2.79666]
[1733252692320,4.17079523,3576.7,3575.4,0.7586]
[1733252692526,1.57328017,3576.6,3575.4,0.7586]
[1733252692728,0.68058136,3576.5,3575.6,2.79667]
[1733252692917,0.68058136,3576.4,3575.6,2.79667]
[1733252693127,0.68058136,3576.3,3575.6,2.79667]
[1733252693329,0.68058136,3576.2,3575.6,2.79667]
[1733252693534,0.68058136,3576.1,3575.4,3.55545]
[1733252693742,0.68058136,3576.0,3575.4,3.55545]
[1733252693945,0.68058136,3575.9,3575.4,3.55545]
[1733252694144,0.68058136,3575.8,3575.4,3.55545]
[1733252694350,0.26176206,3575.7,3575.4,3.55545]
[1733252694553,0.41891265,3576.3,3575.4,1.114145]
[1733252694849,0.68071863,3576.2,3575.4,0.7586]
[1733252695019,0.68071863,3576.1,3575.9,2.79644]
[1733252695219,0.26180598,3576.0,3575.9,2.79644]
[1733252696249,0.26179741,3576.0,3575.9,2.79644]
[1733252697250,0.26179741,3576.0,3575.9,3.62144]
[1733252697426,0.26179741,3576.0,3575.9,4.54536489]
[1733252699057,1.17079523,3577.1,3576.6,2.79588]
[1733252699360,0.68049053,3577.0,3576.6,2.79588]
[1733252699560,1.17079523,3577.1,3576.6,2.79588]
[1733252699718,0.68041088,3576.9,3576.0,0.7933]
[1733252699919,0.68041088,3576.8,3576.5,2.79601]
[1733252700161,0.68041088,3576.7,3576.5,2.79601]
[1733252700463,0.68041088,3576.6,3576.1,0.45383538]
[1733252700664,0.68041088,3576.5,3576.3,2.79613]
[1733252700871,1.17079523,3577.0,3576.1,0.45383538]
[1733252700872,1.17079523,3577.0,3576.5,2.79599]
[1733252701163,0.68042825,3576.9,3576.5,2.79599]
[1733252701398,0.68042825,3576.8,3576.5,2.79599]
[1733252701668,0.68042825,3576.7,3576.5,2.79601]
[1733252701824,0.68042825,3576.6,3576.5,2.79601]
[1733252702024,0.52685874,3577.0,3576.5,2.79601]
[1733252702218,0.68032355,3576.9,3576.5,2.79601]
[1733252702422,0.68032355,3576.8,3576.1,2.79634]
[1733252702663,0.68032355,3576.7,3576.0,3.58965]
[1733252702870,1.69765397,3577.0,3576.0,0.7933]
[1733252703025,0.26164109,3576.6,3576.1,2.79631]
[1733252703220,0.41862575,3576.5,3576.1,2.79631]
[1733252703459,0.68026684,3576.4,3576.0,0.7933]
[1733252703662,0.26164109,3576.3,3576.2,2.79621]
[1733252704193,0.26164109,3576.3,3576.2,3.58066981]